[Event "Championnat du monde jeunes U12F"]
[Date "2024.11.20"]
[White "Smirnova, Viktoria A"]
[Black "Moscovitch, Shelly"]
[WhiteElo "1658"]
[BlackElo "1552"]
[Round "6.36"]
[Result "1-0"]
[TimeControl "5400+30"]

1. d4 {[%clk 1:30:58]} 1... d5 {[%clk 1:30:24]} 2. c4 {[%clk 1:31:17]} 2... e6
{[%clk 1:29:58]} 3. Nf3 {[%clk 1:31:41]} 3... Nf6 {[%clk 1:29:16]} 4. g3 {[%clk
1:32:05]} 4... Be7 {[%clk 1:28:43]} 5. Bg2 {[%clk 1:32:04]} 5... O-O {[%clk
1:28:15]} 6. O-O {[%clk 1:32:22]} 6... Nbd7 {[%clk 1:26:34]} 7. Qc2 {[%clk
1:21:34]} 7... b6 {[%clk 1:23:23]} 8. Nc3 {[%clk 1:20:50]} 8... Bb7 {[%clk
1:22:09]} 9. Ne5 {[%clk 1:16:22]} 9... c5 {[%clk 1:19:24]} 10. Nxd7 {[%clk
1:12:07]} 10... Qxd7 {[%clk 1:17:46]} 11. Rd1 {[%clk 1:09:03]} 11... Rfd8 {[%clk
1:12:36]} 12. Bg5 {[%clk 1:04:50]} 12... Rac8 {[%clk 1:09:56]} 13. dxc5 {[%clk
1:00:47]} 13... Rxc5 {[%clk 1:07:34]} 14. cxd5 {[%clk 0:51:52]} 14... exd5
{[%clk 1:03:14]} 15. Be3 {[%clk 0:48:27]} 15... Rcc8 {[%clk 0:59:39]} 16. Bd4
{[%clk 0:45:28]} 16... Qe6 {[%clk 0:55:15]} 17. Qb3 {[%clk 0:42:12]} 17... Ne8
{[%clk 0:37:31]} 18. Rd2 {[%clk 0:40:43]} 18... Rd7 {[%clk 0:35:15]} 19. Rad1
{[%clk 0:40:02]} 19... Rcd8 {[%clk 0:34:30]} 20. e3 {[%clk 0:38:49]} 20... Nc7
{[%clk 0:33:22]} 21. Ne2 {[%clk 0:36:54]} 21... Qd6 {[%clk 0:30:09]} 22. Qc3
{[%clk 0:33:35]} 22... Ne6 {[%clk 0:28:37]} 23. Be5 {[%clk 0:32:21]} 23... Qc5
{[%clk 0:26:55]} 24. Qd3 {[%clk 0:26:20]} 24... Qa5 {[%clk 0:24:33]} 25. a3
{[%clk 0:19:14]} 25... Nc5 {[%clk 0:17:48]} 26. Qc2 {[%clk 0:18:41]} 26... Ne6
{[%clk 0:16:27]} 27. Bc3 {[%clk 0:18:31]} 27... Qc5 {[%clk 0:15:49]} 28. Qb3
{[%clk 0:18:05]} 28... Qc6 {[%clk 0:12:20]} 29. Nd4 {[%clk 0:16:45]} 29... Nxd4
{[%clk 0:12:27]} 30. Bxd4 {[%clk 0:17:09]} 30... Bc5 {[%clk 0:10:25]} 31. Qd3
{[%clk 0:14:48]} 31... Bxd4 {[%clk 0:10:00]} 32. Qxd4 {[%clk 0:15:12]} 32... h6
{[%clk 0:08:01]} 33. h4 {[%clk 0:15:10]} 33... Qe6 {[%clk 0:07:06]} 34. Kh2
{[%clk 0:14:37]} 34... Qc6 {[%clk 0:06:44]} 35. Qb4 {[%clk 0:12:34]} 35... Qc5
{[%clk 0:05:05]} 36. Qb3 {[%clk 0:11:19]} 36... Qd6 {[%clk 0:04:20]} 37. Rd4
{[%clk 0:10:51]} 37... Qe6 {[%clk 0:03:55]} 38. Bh3 {[%clk 0:10:34]} 38... f5
{[%clk 0:02:25]} 39. Qd3 {[%clk 0:11:00]} 39... Rf8 {[%clk 0:01:48]} 40. Rf4
{[%clk 0:08:59]} 40... Rdf7 {[%clk 0:01:45]} 41. Bg2 {[%clk 0:08:05]} 41... Rd7
{[%clk 0:01:33]} 42. Rd4 {[%clk 0:08:19]} 42... Rfd8 {[%clk 0:01:30]} 43. Qe2
{[%clk 0:05:29]} 43... Qf7 {[%clk 0:01:29]} 44. b4 {[%clk 0:04:39]} 44... Qe6
{[%clk 0:01:16]} 45. Qf3 {[%clk 0:04:51]} 45... Rc8 {[%clk 0:01:01]} 46. R1d2
{[%clk 0:04:11]} 46... Rc3 {[%clk 0:00:55]} 47. a4 {[%clk 0:02:57]} 47... Ra3
{[%clk 0:00:58]} 48. b5 {[%clk 0:03:19]} 48... Rc3 {[%clk 0:01:23]} 49. Qf4
{[%clk 0:02:56]} 49... Rc8 {[%clk 0:01:32]} 50. e4 {[%clk 0:02:10]} 50... fxe4
{[%clk 0:01:27]} 51. Bh3 {[%clk 0:02:31]} 51... Qe7 {[%clk 0:00:55]} 52. Bxd7
{[%clk 0:02:56]} 52... Qxd7 {[%clk 0:01:16]} 53. Qxe4 {[%clk 0:03:00]} 53... Rd8
{[%clk 0:01:02]} 54. Qg6 {[%clk 0:03:06]} 54... Qe7 {[%clk 0:00:43]} 55. Qg4
{[%clk 0:03:10]} 55... Bc8 {[%clk 0:00:49]} 56. Qe2 {[%clk 0:02:34]} 56... Qxe2
{[%clk 0:00:36]} 57. Rxe2 {[%clk 0:02:59]} 57... Kf7 {[%clk 0:00:42]} 58. Rc2
{[%clk 0:03:20]} 58... Kg8 {[%clk 0:00:38]} 59. Rc7 {[%clk 0:03:44]} 59... a5
{[%clk 0:00:32]} 60. Rc6 {[%clk 0:03:23]} 60... Rf8 {[%clk 0:00:40]} 61. Kg1
{[%clk 0:03:33]} 61... Re8 {[%clk 0:00:35]} 62. Rxb6 {[%clk 0:03:42]} 62... Rd8
{[%clk 0:00:37]} 63. Rb8 {[%clk 0:03:51]} 63... Kh7 {[%clk 0:00:46]} 64. b6
{[%clk 0:03:58]} 1-0

[Variant "Standard"]
[Site "Europe Echecs"]

[Event "Championnat du monde jeunes U12F"]
[Date "2024.11.20"]
[White "Chen, Pin-I"]
[Black "Laurincova, Timea"]
[WhiteElo "1601"]
[BlackElo "1549"]
[Round "6.37"]
[Result "1-0"]
[TimeControl "5400+30"]

1. d4 {[%clk 1:30:58]} 1... Nf6 {[%clk 1:30:54]} 2. c4 {[%clk 1:31:18]} 2... g6
{[%clk 1:31:20]} 3. g3 {[%clk 1:31:43]} 3... Bg7 {[%clk 1:31:43]} 4. Bg2 {[%clk
1:32:03]} 4... O-O {[%clk 1:31:58]} 5. Nc3 {[%clk 1:32:18]} 5... d6 {[%clk
1:32:05]} 6. Nf3 {[%clk 1:32:36]} 6... c6 {[%clk 1:32:13]} 7. O-O {[%clk
1:32:40]} 7... Bf5 {[%clk 1:32:29]} 8. Bg5 {[%clk 1:31:24]} 8... Ne4 {[%clk
1:31:58]} 9. Nxe4 {[%clk 1:26:29]} 9... Bxe4 {[%clk 1:32:05]} 10. Qb3 {[%clk
1:21:15]} 10... Qc7 {[%clk 1:25:23]} 11. Rfd1 {[%clk 1:03:40]} 11... Re8 {[%clk
1:21:30]} 12. Rac1 {[%clk 1:02:17]} 12... Nd7 {[%clk 1:16:29]} 13. Qe3 {[%clk
0:56:46]} 13... Bxf3 {[%clk 0:50:49]} 14. Bxf3 {[%clk 0:55:59]} 14... Nf6 {[%clk
0:50:10]} 15. Bh6 {[%clk 0:48:40]} 15... Qd7 {[%clk 0:47:00]} 16. Bxg7 {[%clk
0:46:34]} 16... Kxg7 {[%clk 0:47:23]} 17. Bg2 {[%clk 0:37:37]} 17... Qf5 {[%clk
0:44:29]} 18. Qf3 {[%clk 0:35:58]} 18... Qa5 {[%clk 0:43:27]} 19. a3 {[%clk
0:30:15]} 19... Rac8 {[%clk 0:40:50]} 20. b4 {[%clk 0:28:53]} 20... Qd8 {[%clk
0:38:35]} 21. e4 {[%clk 0:27:45]} 21... Ng8 {[%clk 0:33:44]} 22. e5 {[%clk
0:27:18]} 22... Qc7 {[%clk 0:29:34]} 23. Re1 {[%clk 0:26:03]} 23... e6 {[%clk
0:28:13]} 24. Qf4 {[%clk 0:24:17]} 24... dxe5 {[%clk 0:25:33]} 25. Qxe5+ {[%clk
0:24:18]} 25... Qxe5 {[%clk 0:25:53]} 26. dxe5 {[%clk 0:24:17]} 26... Red8
{[%clk 0:25:28]} 27. Red1 {[%clk 0:24:35]} 27... Ne7 {[%clk 0:25:20]} 28. g4
{[%clk 0:24:22]} 28... g5 {[%clk 0:25:02]} 29. Rd6 {[%clk 0:24:11]} 29... Ng6
{[%clk 0:23:50]} 30. Rcd1 {[%clk 0:22:48]} 30... Rxd6 {[%clk 0:23:36]} 31. exd6
{[%clk 0:23:09]} 31... Ne5 {[%clk 0:19:14]} 32. c5 {[%clk 0:22:39]} 32... Nd7
{[%clk 0:16:32]} 33. Kf1 {[%clk 0:21:44]} 33... a5 {[%clk 0:15:51]} 34. Ra1
{[%clk 0:14:47]} 34... Ra8 {[%clk 0:14:18]} 35. b5 {[%clk 0:13:02]} 35... Nxc5
{[%clk 0:11:27]} 36. bxc6 {[%clk 0:13:19]} 36... bxc6 {[%clk 0:11:38]} 37. Bxc6
{[%clk 0:13:43]} 37... Rd8 {[%clk 0:11:49]} 38. Rd1 {[%clk 0:13:37]} 38... Nd7
{[%clk 0:11:43]} 39. Bxd7 {[%clk 0:10:00]} 39... Rxd7 {[%clk 0:12:06]} 40. Rd4
{[%clk 0:10:09]} 40... Kf6 {[%clk 0:10:57]} 41. Ke2 {[%clk 0:09:49]} 41... Ke5
{[%clk 0:10:23]} 42. Kd3 {[%clk 0:09:25]} 42... Rxd6 {[%clk 0:09:45]} 43. Rxd6
{[%clk 0:09:48]} 43... Kxd6 {[%clk 0:09:59]} 44. Kd4 {[%clk 0:08:33]} 44... e5+
{[%clk 0:09:10]} 45. Kc4 {[%clk 0:08:43]} 45... Kc6 {[%clk 0:09:30]} 46. f3
{[%clk 0:08:39]} 46... f6 {[%clk 0:08:00]} 47. h3 {[%clk 0:08:56]} 47... h6
{[%clk 0:08:27]} 48. a4 {[%clk 0:09:21]} 48... Kb6 {[%clk 0:03:37]} 49. Kd5
{[%clk 0:09:41]} 49... Kb7 {[%clk 0:03:46]} 50. Kc5 {[%clk 0:10:03]} 50... Ka6
{[%clk 0:03:47]} 51. Kc6 {[%clk 0:10:28]} 51... Ka7 {[%clk 0:04:07]} 52. Kb5
{[%clk 0:10:54]} 52... Kb7 {[%clk 0:04:30]} 53. Kxa5 {[%clk 0:11:20]} 53... Ka7
{[%clk 0:04:52]} 54. Kb5 {[%clk 0:11:45]} 54... Kb7 {[%clk 0:05:06]} 55. a5
{[%clk 0:12:10]} 55... Ka7 {[%clk 0:05:25]} 56. a6 {[%clk 0:12:36]} 56... Kb8
{[%clk 0:05:24]} 57. Kc6 {[%clk 0:12:53]} 57... Ka7 {[%clk 0:05:34]} 58. Kd6
{[%clk 0:13:16]} 58... Kxa6 {[%clk 0:05:45]} 59. Ke6 {[%clk 0:13:40]} 59... Kb6
{[%clk 0:05:54]} 60. Kxf6 {[%clk 0:13:54]} 60... Kc6 {[%clk 0:06:15]} 61. Kxe5
{[%clk 0:14:18]} 61... Kc5 {[%clk 0:05:55]} 62. Kf5 {[%clk 0:14:25]} 62... Kd5
{[%clk 0:03:57]} 63. Kg6 {[%clk 0:14:41]} 63... Ke6 {[%clk 0:03:14]} 64. Kxh6
{[%clk 0:15:04]} 64... Kf6 {[%clk 0:03:34]} 65. Kh5 {[%clk 0:15:27]} 65... Kg7
{[%clk 0:03:16]} 66. Kxg5 {[%clk 0:15:52]} 66... Kh7 {[%clk 0:03:36]} 67. f4
{[%clk 0:16:07]} 67... Kg7 {[%clk 0:03:32]} 68. f5 {[%clk 0:16:32]} 68... Kf7
{[%clk 0:03:52]} 69. f6 {[%clk 0:16:58]} 69... Kf8 {[%clk 0:04:04]} 70. Kg6
{[%clk 0:17:15]} 70... Kg8 {[%clk 0:04:07]} 71. f7+ {[%clk 0:17:26]} 71... Kf8
{[%clk 0:04:33]} 72. h4 {[%clk 0:17:52]} 1-0

[Variant "Standard"]
[Site "Europe Echecs"]

[Event "Championnat du monde jeunes U12F"]
[Date "2024.11.20"]
[White "Alcantara, Levanah"]
[Black "Petrusic, Dusica"]
[WhiteElo "1753"]
[BlackElo "1498"]
[Round "6.38"]
[Result "1-0"]
[TimeControl "5400+30"]

1. d4 {[%clk 1:30:30]} 1... d5 {[%clk 1:30:57]} 2. c4 {[%clk 1:31:18]} 2... c6
{[%clk 1:31:19]} 3. cxd5 {[%clk 1:31:40]} 3... cxd5 {[%clk 1:31:39]} 4. Bf4
{[%clk 1:31:58]} 4... Nf6 {[%clk 1:29:34]} 5. Nc3 {[%clk 1:32:08]} 5... Bf5
{[%clk 1:27:45]} 6. e3 {[%clk 1:28:19]} 6... a6 {[%clk 1:24:32]} 7. Bd3 {[%clk
1:25:47]} 7... Bxd3 {[%clk 1:21:11]} 8. Qxd3 {[%clk 1:26:10]} 8... e6 {[%clk
1:19:54]} 9. Nf3 {[%clk 1:25:33]} 9... Bd6 {[%clk 1:19:02]} 10. Bg3 {[%clk
1:25:15]} 10... Nc6 {[%clk 1:18:28]} 11. Rc1 {[%clk 1:22:40]} 11... Rc8 {[%clk
1:14:50]} 12. Qe2 {[%clk 1:15:02]} 12... Na5 {[%clk 1:05:11]} 13. Ne5 {[%clk
1:12:34]} 13... Bb4 {[%clk 1:01:50]} 14. O-O {[%clk 1:09:40]} 14... O-O {[%clk
0:59:35]} 15. Na4 {[%clk 1:04:57]} 15... Ne4 {[%clk 0:50:49]} 16. Nd3 {[%clk
0:57:01]} 16... Nxg3 {[%clk 0:42:06]} 17. hxg3 {[%clk 0:57:12]} 17... Bd6 {[%clk
0:39:57]} 18. Nac5 {[%clk 0:55:42]} 18... Qe7 {[%clk 0:37:46]} 19. b3 {[%clk
0:51:18]} 19... e5 {[%clk 0:33:24]} 20. Qd2 {[%clk 0:47:54]} 20... Nc6 {[%clk
0:30:43]} 21. dxe5 {[%clk 0:34:43]} 21... Nxe5 {[%clk 0:23:16]} 22. Na4 {[%clk
0:32:10]} 22... Nxd3 {[%clk 0:18:04]} 23. Qxd3 {[%clk 0:32:33]} 23... Qe6 {[%clk
0:17:43]} 24. Rxc8 {[%clk 0:31:03]} 24... Rxc8 {[%clk 0:17:56]} 25. Rd1 {[%clk
0:30:31]} 25... Bf8 {[%clk 0:15:37]} 26. Qxd5 {[%clk 0:27:59]} 26... Qxd5 {[%clk
0:15:39]} 27. Rxd5 {[%clk 0:28:24]} 27... Rc1+ {[%clk 0:15:45]} 28. Kh2 {[%clk
0:28:44]} 28... Rc2 {[%clk 0:15:53]} 29. Rd8 {[%clk 0:28:05]} 29... g6 {[%clk
0:15:13]} 30. a3 {[%clk 0:23:45]} 30... Rxf2 {[%clk 0:14:22]} 31. Nc5 {[%clk
0:23:48]} 31... Kg7 {[%clk 0:13:42]} 32. Nxb7 {[%clk 0:23:09]} 32... Bxa3 {[%clk
0:13:34]} 33. Rd4 {[%clk 0:17:00]} 33... Rb2 {[%clk 0:11:44]} 34. Na5 {[%clk
0:16:34]} 34... Bc5 {[%clk 0:10:18]} 35. Rd3 {[%clk 0:16:26]} 35... Re2 {[%clk
0:08:59]} 36. Nc4 {[%clk 0:16:03]} 36... Re1 {[%clk 0:08:27]} 37. g4 {[%clk
0:14:23]} 37... Ba7 {[%clk 0:07:22]} 38. Kg3 {[%clk 0:13:59]} 38... Rb1 {[%clk
0:05:45]} 39. Kf2 {[%clk 0:13:41]} 39... Ra1 {[%clk 0:05:30]} 40. Ne5 {[%clk
0:12:19]} 40... Bb8 {[%clk 0:04:19]} 41. Nc6 {[%clk 0:12:07]} 41... Bh2 {[%clk
0:02:19]} 42. Nd4 {[%clk 0:09:18]} 42... Be5 {[%clk 0:01:20]} 43. Nc6 {[%clk
0:07:58]} 43... Bh2 {[%clk 0:01:30]} 44. b4 {[%clk 0:08:04]} 44... Bg1+ {[%clk
0:01:40]} 45. Ke2 {[%clk 0:05:54]} 45... Ra2+ {[%clk 0:01:49]} 46. Rd2 {[%clk
0:05:26]} 46... Ra3 {[%clk 0:01:50]} 47. Rd3 {[%clk 0:05:22]} 47... Ra2+ {[%clk
0:01:59]} 48. Kf3 {[%clk 0:05:21]} 48... Rf2+ {[%clk 0:02:14]} 49. Kg3 {[%clk
0:05:48]} 49... Rf6 {[%clk 0:02:28]} 50. Nd4 {[%clk 0:04:40]} 50... Bf2+ {[%clk
0:02:35]} 51. Kh2 {[%clk 0:04:29]} 51... h6 {[%clk 0:02:09]} 52. g3 {[%clk
0:04:16]} 52... Kh7 {[%clk 0:02:02]} 53. Kg2 {[%clk 0:04:24]} 53... h5 {[%clk
0:02:08]} 54. g5 {[%clk 0:04:27]} 54... Rb6 {[%clk 0:02:17]} 55. Kxf2 {[%clk
0:03:50]} 55... Rxb4 {[%clk 0:02:36]} 56. Ra3 {[%clk 0:03:33]} 56... Rb6 {[%clk
0:02:40]} 57. Ra5 {[%clk 0:03:43]} 57... Kg7 {[%clk 0:02:53]} 58. Kf3 {[%clk
0:03:54]} 58... f6 {[%clk 0:02:51]} 59. Kf4 {[%clk 0:04:07]} 59... Kf7 {[%clk
0:02:55]} 60. Rc5 {[%clk 0:03:01]} 60... fxg5+ {[%clk 0:02:56]} 61. Kxg5 {[%clk
0:03:04]} 61... Rd6 {[%clk 0:03:05]} 62. Rc7+ {[%clk 0:03:11]} 62... Ke8 {[%clk
0:03:16]} 63. Rc6 {[%clk 0:02:30]} 63... Rxc6 {[%clk 0:03:06]} 64. Nxc6 {[%clk
0:02:57]} 64... Kd7 {[%clk 0:03:28]} 65. Nb4 {[%clk 0:03:07]} 65... a5 {[%clk
0:03:40]} 66. Na2 {[%clk 0:03:30]} 66... a4 {[%clk 0:03:43]} 67. Kxg6 {[%clk
0:03:39]} 67... a3 {[%clk 0:04:00]} 68. Kxh5 {[%clk 0:03:54]} 68... Kc6 {[%clk
0:04:08]} 69. g4 {[%clk 0:04:05]} 69... Kc5 {[%clk 0:04:26]} 70. g5 {[%clk
0:04:30]} 70... Kc4 {[%clk 0:04:40]} 71. g6 {[%clk 0:04:52]} 71... Kb3 {[%clk
0:05:01]} 72. g7 {[%clk 0:05:17]} 72... Kxa2 {[%clk 0:05:02]} 73. g8=Q+ {[%clk
0:05:37]} 73... Ka1 {[%clk 0:04:59]} 74. e4 {[%clk 0:05:51]} 74... a2 {[%clk
0:04:32]} 75. e5 {[%clk 0:06:11]} 75... Kb2 {[%clk 0:04:45]} 76. Qxa2+ {[%clk
0:06:36]} 1-0

[Variant "Standard"]
[Site "Europe Echecs"]

[Event "Championnat du monde jeunes U12F"]
[Date "2024.11.20"]
[White "Dzafic, Merjem"]
[Black "Istratova, Nika"]
[WhiteElo "1568"]
[BlackElo "1473"]
[Round "6.39"]
[Result "0-1"]
[TimeControl "5400+30"]

1. e4 {[%clk 1:30:57]} 1... e5 {[%clk 1:30:54]} 2. Nf3 {[%clk 1:31:08]} 2... Nc6
{[%clk 1:31:17]} 3. d4 {[%clk 1:31:08]} 3... exd4 {[%clk 1:31:40]} 4. Nxd4
{[%clk 1:31:29]} 4... Bc5 {[%clk 1:31:58]} 5. Be3 {[%clk 1:31:15]} 5... Qf6
{[%clk 1:31:56]} 6. c3 {[%clk 1:30:10]} 6... Nge7 {[%clk 1:29:40]} 7. Bc4 {[%clk
1:28:54]} 7... d6 {[%clk 1:27:09]} 8. O-O {[%clk 1:10:56]} 8... O-O {[%clk
1:23:49]} 9. Re1 {[%clk 1:04:32]} 9... Ne5 {[%clk 1:20:15]} 10. Be2 {[%clk
0:58:11]} 10... Be6 {[%clk 1:15:01]} 11. Nd2 {[%clk 0:53:00]} 11... Bb6 {[%clk
1:08:21]} 12. N2b3 {[%clk 0:49:52]} 12... Bc4 {[%clk 1:03:34]} 13. Qd2 {[%clk
0:43:00]} 13... Bxe2 {[%clk 0:59:59]} 14. Qxe2 {[%clk 0:43:00]} 14... Rfe8
{[%clk 0:51:10]} 15. Rad1 {[%clk 0:39:44]} 15... c6 {[%clk 0:45:54]} 16. c4
{[%clk 0:29:56]} 16... Rad8 {[%clk 0:36:14]} 17. Nc2 {[%clk 0:21:43]} 17... Bxe3
{[%clk 0:31:18]} 18. Nxe3 {[%clk 0:21:42]} 18... N5g6 {[%clk 0:25:24]} 19. Rd2
{[%clk 0:18:07]} 19... Nf4 {[%clk 0:19:23]} 20. Qf3 {[%clk 0:17:52]} 20... Neg6
{[%clk 0:17:58]} 21. Nf5 {[%clk 0:14:18]} 21... d5 {[%clk 0:14:51]} 22. cxd5
{[%clk 0:11:43]} 22... Qxf5 {[%clk 0:12:23]} 23. dxc6 {[%clk 0:07:33]} 23... Qc8
{[%clk 0:08:00]} 24. cxb7 {[%clk 0:06:30]} 24... Qxb7 {[%clk 0:08:23]} 25. Red1
{[%clk 0:04:54]} 25... Rc8 {[%clk 0:06:18]} 26. h3 {[%clk 0:03:58]} 26... h6
{[%clk 0:06:00]} 27. Kh2 {[%clk 0:03:19]} 27... Qb8 {[%clk 0:05:17]} 28. g3
{[%clk 0:02:58]} 28... Ne6 29. Qe2 {[%clk 0:02:11]} 29... Kh8 {[%clk 0:03:30]}
30. Rd7 {[%clk 0:02:12]} 30... Rc7 {[%clk 0:03:10]} 31. f4 {[%clk 0:01:44]}
31... Nef8 {[%clk 0:02:16]} 32. R7d2 {[%clk 0:01:39]} 32... Rce7 {[%clk
0:02:02]} 33. Rd4 {[%clk 0:01:08]} 33... f6 {[%clk 0:01:30]} 34. Qf3 {[%clk
0:00:48]} 34... Ne6 {[%clk 0:01:19]} 35. Rd7 {[%clk 0:00:41]} 35... Ngf8 {[%clk
0:01:19]} 36. R7d2 {[%clk 0:00:55]} 36... Qb7 {[%clk 0:01:11]} 37. Re2 {[%clk
0:00:45]} 37... Nc7 {[%clk 0:01:06]} 38. Rde1 {[%clk 0:00:33]} 38... f5 {[%clk
0:01:05]} 39. Nc5 {[%clk 0:00:32]} 39... Qc6 {[%clk 0:00:51]} 40. Qe3 {[%clk
0:00:40]} 40... fxe4 {[%clk 0:00:54]} 41. Nxe4 {[%clk 0:00:51]} 41... Rxe4
{[%clk 0:01:05]} 42. Qxe4 {[%clk 0:01:03]} 42... Rxe4 {[%clk 0:01:30]} 43. Rxe4
{[%clk 0:01:25]} 43... Nfe6 {[%clk 0:01:25]} 44. f5 {[%clk 0:01:30]} 44... Ng5
{[%clk 0:01:36]} 0-1

[Variant "Standard"]
[Site "Europe Echecs"]

[Event "Championnat du monde jeunes U12F"]
[Date "2024.11.20"]
[White "Groselj, Mirjam"]
[Black "Potikha, Shelley"]
[WhiteElo "1470"]
[BlackElo "1561"]
[Round "6.40"]
[Result "0-1"]
[TimeControl "5400+30"]

1. e4 {[%clk 1:30:57]} 1... e6 {[%clk 1:30:58]} 2. d4 {[%clk 1:31:11]} 2... d5
{[%clk 1:31:24]} 3. exd5 {[%clk 1:31:34]} 3... exd5 {[%clk 1:31:46]} 4. Bd3
{[%clk 1:31:52]} 4... Nc6 {[%clk 1:31:14]} 5. Nf3 {[%clk 1:31:42]} 5... Bd6
{[%clk 1:30:34]} 6. O-O {[%clk 1:30:35]} 6... Nge7 {[%clk 1:30:25]} 7. Be3
{[%clk 1:29:02]} 7... Bg4 {[%clk 1:30:34]} 8. h3 {[%clk 1:27:47]} 8... Bh5
{[%clk 1:30:51]} 9. Nbd2 {[%clk 1:27:36]} 9... Qd7 {[%clk 1:30:11]} 10. Re1
{[%clk 1:25:55]} 10... O-O-O {[%clk 1:28:05]} 11. a3 {[%clk 1:24:41]} 11... f5
{[%clk 1:25:18]} 12. Nf1 {[%clk 1:22:10]} 12... f4 {[%clk 1:21:25]} 13. Bd2
{[%clk 1:21:55]} 13... g5 {[%clk 1:17:27]} 14. Be2 {[%clk 1:18:33]} 14... g4
{[%clk 1:08:11]} 15. hxg4 {[%clk 1:15:32]} 15... Bxg4 {[%clk 1:07:58]} 16. N3h2
{[%clk 1:14:23]} 16... Bxe2 {[%clk 1:06:11]} 17. Qxe2 {[%clk 1:13:13]} 17...
Nxd4 {[%clk 0:55:24]} 18. Qd3 {[%clk 1:09:46]} 18... Rhg8 {[%clk 0:24:49]} 19.
Kh1 {[%clk 0:55:46]} 19... f3 {[%clk 0:18:24]} 20. Nxf3 {[%clk 0:51:30]} 20...
Qg4 {[%clk 0:14:29]} 21. Ng3 {[%clk 0:46:40]} 21... Bxg3 {[%clk 0:06:09]} 22.
Qxd4 {[%clk 0:44:05]} 22... Bf4 {[%clk 0:04:27]} 23. g3 {[%clk 0:39:13]} 23...
Qxf3+ {[%clk 0:03:50]} 24. Kg1 {[%clk 0:38:50]} 24... Bxg3 {[%clk 0:02:09]} 25.
Kf1 {[%clk 0:34:14]} 25... Bh2 {[%clk 0:00:37]} 0-1

[Variant "Standard"]
[Site "Europe Echecs"]

[Event "Championnat du monde jeunes U12F"]
[Date "2024.11.20"]
[White "Liu, Lillian Yu-Ning"]
[Black "Hiznicenco, Valeria"]
[WhiteElo "1456"]
[BlackElo "1513"]
[Round "6.41"]
[Result "1/2-1/2"]
[TimeControl "5400+30"]

1. e4 {[%clk 1:30:57]} 1... c6 {[%clk 1:30:48]} 2. d4 {[%clk 1:31:23]} 2... d5
{[%clk 1:31:12]} 3. Nc3 {[%clk 1:31:47]} 3... dxe4 {[%clk 1:30:44]} 4. Nxe4
{[%clk 1:32:05]} 4... Bf5 {[%clk 1:30:23]} 5. Ng3 {[%clk 1:32:24]} 5... Bg6
{[%clk 1:30:31]} 6. Nf3 {[%clk 1:32:32]} 6... Nf6 {[%clk 1:29:57]} 7. Bd3 {[%clk
1:31:17]} 7... Bxd3 {[%clk 1:29:53]} 8. Qxd3 {[%clk 1:31:33]} 8... e6 {[%clk
1:30:03]} 9. O-O {[%clk 1:31:42]} 9... Bd6 {[%clk 1:30:06]} 10. Ne4 {[%clk
1:21:20]} 10... Be7 {[%clk 1:21:52]} 11. Nxf6+ {[%clk 1:02:37]} 11... Bxf6
{[%clk 1:22:00]} 12. Re1 {[%clk 1:01:33]} 12... Nd7 {[%clk 1:11:06]} 13. Qb3
{[%clk 0:46:22]} 13... Qb6 {[%clk 1:03:45]} 14. Qc4 {[%clk 0:39:19]} 14... O-O
{[%clk 1:01:53]} 1/2-1/2

[Variant "Standard"]
[Site "Europe Echecs"]

[Event "Championnat du monde jeunes U12F"]
[Date "2024.11.20"]
[White "Canossa, Elena"]
[Black "Hrckova, Anna"]
[WhiteElo "1482"]
[BlackElo "1441"]
[Round "6.42"]
[Result "0-1"]
[TimeControl "5400+30"]

1. e4 {[%clk 1:30:57]} 1... e6 {[%clk 1:30:56]} 2. d4 {[%clk 1:31:20]} 2... d5
{[%clk 1:31:21]} 3. exd5 {[%clk 1:31:43]} 3... exd5 {[%clk 1:31:45]} 4. Bd3
{[%clk 1:32:08]} 4... Nc6 {[%clk 1:32:02]} 5. c3 {[%clk 1:32:30]} 5... Bd6
{[%clk 1:32:23]} 6. Qf3 {[%clk 1:32:14]} 6... Be6 {[%clk 1:32:29]} 7. Ne2 {[%clk
1:30:34]} 7... Qd7 {[%clk 1:32:28]} 8. h3 {[%clk 1:28:11]} 8... O-O-O {[%clk
1:32:08]} 9. Be3 {[%clk 1:26:12]} 9... h5 {[%clk 1:29:15]} 10. g3 {[%clk
1:09:56]} 10... Kb8 {[%clk 1:01:15]} 11. Qg2 {[%clk 1:02:45]} 11... f5 {[%clk
0:52:40]} 12. Nd2 {[%clk 0:57:22]} 12... Nf6 {[%clk 0:43:53]} 13. O-O-O {[%clk
0:52:01]} 13... Rhg8 {[%clk 0:42:50]} 14. f4 {[%clk 0:41:22]} 14... Be7 {[%clk
0:38:17]} 15. Nf3 {[%clk 0:38:57]} 15... Nh7 {[%clk 0:38:06]} 16. h4 {[%clk
0:32:22]} 16... Nf6 {[%clk 0:36:16]} 17. Bd2 {[%clk 0:27:29]} 17... Ng4 {[%clk
0:35:35]} 18. Neg1 {[%clk 0:23:46]} 18... Na5 {[%clk 0:31:58]} 19. Be1 {[%clk
0:17:01]} 19... Ne3 {[%clk 0:31:36]} 20. Qe2 {[%clk 0:12:52]} 20... Nxd1 {[%clk
0:31:49]} 21. Qxd1 {[%clk 0:12:34]} 21... Bf6 {[%clk 0:30:34]} 22. Ne5 {[%clk
0:11:02]} 22... Bxe5 {[%clk 0:30:43]} 23. fxe5 {[%clk 0:11:20]} 23... g6 {[%clk
0:29:28]} 24. Bd2 {[%clk 0:10:35]} 24... Nc4 {[%clk 0:27:26]} 25. Bg5 {[%clk
0:09:39]} 25... Rde8 {[%clk 0:26:30]} 26. Qb3 {[%clk 0:09:30]} 26... Qc6 {[%clk
0:25:20]} 27. Ne2 {[%clk 0:08:24]} 27... Qb6 {[%clk 0:24:29]} 28. Re1 {[%clk
0:07:41]} 28... Qxb3 {[%clk 0:24:32]} 29. axb3 {[%clk 0:08:03]} 29... Nb6 {[%clk
0:24:24]} 30. Nf4 {[%clk 0:07:54]} 30... c6 {[%clk 0:23:31]} 31. Kc2 {[%clk
0:06:10]} 31... Kc7 {[%clk 0:21:59]} 32. Ra1 {[%clk 0:05:11]} 32... a6 {[%clk
0:22:10]} 33. Ra5 {[%clk 0:04:27]} 33... Nd7 {[%clk 0:19:28]} 34. c4 {[%clk
0:04:04]} 34... Kb6 {[%clk 0:18:33]} 35. Ra4 {[%clk 0:04:12]} 35... dxc4 {[%clk
0:17:27]} 36. bxc4 {[%clk 0:04:24]} 36... Kc7 {[%clk 0:17:12]} 37. d5 {[%clk
0:03:58]} 37... Bxd5 {[%clk 0:15:44]} 38. cxd5 {[%clk 0:03:30]} 38... Nxe5
{[%clk 0:15:46]} 39. Bc4 {[%clk 0:02:09]} 39... b5 {[%clk 0:15:34]} 40. Rxa6
{[%clk 0:00:58]} 40... bxc4 {[%clk 0:15:38]} 41. Bf6 {[%clk 0:00:43]} 41... Kb7
{[%clk 0:15:33]} 42. Ra4 {[%clk 0:00:56]} 42... cxd5 {[%clk 0:13:10]} 43. Nxd5
{[%clk 0:00:59]} 43... Ng4 {[%clk 0:12:44]} 44. Rxc4 {[%clk 0:00:51]} 44... Rc8
{[%clk 0:12:56]} 45. Rxc8 {[%clk 0:01:06]} 45... Rxc8+ {[%clk 0:13:22]} 46. Kd3
{[%clk 0:01:19]} 46... Nxf6 {[%clk 0:13:17]} 47. Nxf6 {[%clk 0:01:40]} 47... Rc6
{[%clk 0:13:00]} 48. Nd5 {[%clk 0:01:41]} 48... Rd6 {[%clk 0:13:14]} 49. Kc4
{[%clk 0:02:05]} 49... Rc6+ {[%clk 0:13:24]} 50. Kb5 {[%clk 0:01:49]} 50... Rc2
{[%clk 0:13:43]} 51. b4 {[%clk 0:02:12]} 51... Rg2 {[%clk 0:14:02]} 52. Kc5
{[%clk 0:02:19]} 52... Rxg3 {[%clk 0:14:18]} 53. b5 {[%clk 0:02:36]} 53... Rg4
{[%clk 0:13:56]} 54. b6 {[%clk 0:02:46]} 54... Rxh4 {[%clk 0:14:14]} 55. Nc7
{[%clk 0:02:59]} 55... Rh1 {[%clk 0:14:08]} 56. Kb5 {[%clk 0:02:22]} 56... Rb1+
{[%clk 0:14:24]} 57. Kc5 {[%clk 0:02:44]} 57... Rxb6 {[%clk 0:14:37]} 58. Kd4
0-1

[Variant "Standard"]
[Site "Europe Echecs"]